[Event "Titled Tuesday Blitz November 2 2021"]
[White "Ovchinnikov, Vsevolod"]
[Black "Postny, Evgeny"]
[WhiteFideId "24176842"]
[BlackFideId "2804344"]
[WhiteElo "2376"]
[BlackElo "2521"]
[Result "1-0"]
[Round "11"]
[TimeControl "180+1"]
[Date "2021.11.02"]
[WhiteClock "0:00:07"]
[BlackClock "0:00:12"]

1. d4 {[%clk 0:03:00]}  Nf6 {[%clk 0:02:56]} 2. c4 {[%clk 0:03:01]}  e5 {[%clk 0:02:56]} 3. dxe5 {[%clk 0:03:01]}  Ne4 {[%clk 0:02:56]} 4. Nf3 {[%clk 0:03:00]}  Nc6 {[%clk 0:02:56]} 5. Nbd2 {[%clk 0:02:58]}  Nc5 {[%clk 0:02:55]} 6. a3 {[%clk 0:02:55]}  a5 {[%clk 0:02:54]} 7. g3 {[%clk 0:02:52]}  d6 {[%clk 0:02:52]} 8. exd6 {[%clk 0:02:50]}  Qxd6 {[%clk 0:02:51]} 9. Bg2 {[%clk 0:02:50]}  Bf5 {[%clk 0:02:51]} 10. O-O {[%clk 0:02:49]}  O-O-O {[%clk 0:02:51]} 11. b4 {[%clk 0:02:41]}  axb4 {[%clk 0:02:44]} 12. axb4 {[%clk 0:02:41]}  Nxb4 {[%clk 0:02:45]} 13. Ra8+ {[%clk 0:02:34]}  Kd7 {[%clk 0:02:45]} 14. Rxd8+ {[%clk 0:02:34]}  Kxd8 {[%clk 0:02:46]} 15. Ba3 {[%clk 0:02:34]}  Nba6 {[%clk 0:02:42]} 16. Qa1 {[%clk 0:02:29]}  Kc8 {[%clk 0:02:27]} 17. Rd1 {[%clk 0:02:24]}  Qb6 {[%clk 0:02:20]} 18. Nd4 {[%clk 0:02:19]}  Bg6 {[%clk 0:02:14]} 19. e4 {[%clk 0:01:58]}  Ne6 {[%clk 0:02:08]} 20. Nxe6 {[%clk 0:01:49]}  Qxe6 {[%clk 0:02:07]} 21. Bxf8 {[%clk 0:01:28]}  Rxf8 {[%clk 0:02:08]} 22. Qxg7 {[%clk 0:01:28]}  Rd8 {[%clk 0:02:06]} 23. Bf3 {[%clk 0:01:29]}  Nc5 {[%clk 0:01:59]} 24. Qa1 {[%clk 0:01:14]}  Kb8 {[%clk 0:01:58]} 25. Qa3 {[%clk 0:00:23]}  Qe5 {[%clk 0:01:43]} 26. Ra1 {[%clk 0:00:16]}  Na6 {[%clk 0:01:43]} 27. Nf1 {[%clk 0:00:13]}  Qc5 {[%clk 0:01:34]} 28. Qxc5 {[%clk 0:00:12]}  Nxc5 {[%clk 0:01:35]} 29. e5 {[%clk 0:00:12]}  Nd3 {[%clk 0:01:31]} 30. Ne3 {[%clk 0:00:09]}  Nxe5 {[%clk 0:01:30]} 31. Bg2 {[%clk 0:00:09]}  Rd2 {[%clk 0:01:26]} 32. g4 {[%clk 0:00:08]}  Bd3 {[%clk 0:01:22]} 33. Rc1 {[%clk 0:00:08]}  Be2 {[%clk 0:01:06]} 34. h3 {[%clk 0:00:08]}  Bf3 {[%clk 0:01:02]} 35. Bxf3 {[%clk 0:00:08]}  Nxf3+ {[%clk 0:01:03]} 36. Kg2 {[%clk 0:00:08]}  Ne5 {[%clk 0:00:59]} 37. Kg3 {[%clk 0:00:06]}  c6 {[%clk 0:00:54]} 38. Rc3 {[%clk 0:00:05]}  Kc7 {[%clk 0:00:49]} 39. f4 {[%clk 0:00:06]}  Nd3 {[%clk 0:00:49]} 40. h4 {[%clk 0:00:04]}  Nc5 {[%clk 0:00:47]} 41. Kf3 {[%clk 0:00:05]}  Rh2 {[%clk 0:00:43]} 42. h5 {[%clk 0:00:05]}  Rh3+ {[%clk 0:00:43]} 43. Kg2 {[%clk 0:00:05]}  Rh4 {[%clk 0:00:40]} 44. Rc1 {[%clk 0:00:06]}  Ne4 {[%clk 0:00:39]} 45. Kf3 {[%clk 0:00:06]}  Nf6 {[%clk 0:00:24]} 46. Kg3 {[%clk 0:00:06]}  Nxg4 {[%clk 0:00:25]} 47. Nxg4 {[%clk 0:00:05]}  Rxh5 {[%clk 0:00:25]} 48. Ne5 {[%clk 0:00:06]}  f6 {[%clk 0:00:23]} 49. Ng4 {[%clk 0:00:06]}  f5 {[%clk 0:00:19]} 50. Ne3 {[%clk 0:00:07]}  Kd6 {[%clk 0:00:19]} 51. c5+ {[%clk 0:00:07]}  Kc7 {[%clk 0:00:18]} 52. Rb1 {[%clk 0:00:08]}  Kc8 {[%clk 0:00:15]} 53. Rb2 {[%clk 0:00:07]}  Kd7 {[%clk 0:00:13]} 54. Rxb7+ {[%clk 0:00:07]}  Ke6 {[%clk 0:00:12]} 55. Rc7 {[%clk 0:00:07]} 1-0


[Site "https://www.chess.com"]

[Event "Titled Tuesday Blitz November 2 2021"]
[White "Przybylski, Wojciech"]
[Black "Wagner, Dennis"]
[WhiteFideId "1117599"]
[BlackFideId "24650684"]
[WhiteElo "2247"]
[BlackElo "2355"]
[Result "0-1"]
[Round "11"]
[TimeControl "180+1"]
[Date "2021.11.02"]
[WhiteClock "0:00:01"]
[BlackClock "0:01:20"]

1. e4 {[%clk 0:03:00]}  c5 {[%clk 0:02:59]} 2. Nf3 {[%clk 0:03:00]}  d6 {[%clk 0:02:59]} 3. Bb5+ {[%clk 0:02:58]}  Nd7 {[%clk 0:02:59]} 4. a4 {[%clk 0:02:57]}  Nf6 {[%clk 0:02:58]} 5. Nc3 {[%clk 0:02:57]}  g6 {[%clk 0:02:57]} 6. O-O {[%clk 0:02:55]}  Bg7 {[%clk 0:02:57]} 7. Re1 {[%clk 0:02:55]}  O-O {[%clk 0:02:56]} 8. a5 {[%clk 0:02:55]}  a6 {[%clk 0:02:55]} 9. Bc4 {[%clk 0:02:53]}  b5 {[%clk 0:02:54]} 10. axb6 {[%clk 0:02:52]}  Nxb6 {[%clk 0:02:54]} 11. Ba2 {[%clk 0:02:51]}  a5 {[%clk 0:02:47]} 12. h3 {[%clk 0:02:49]}  a4 {[%clk 0:02:47]} 13. Rb1 {[%clk 0:02:45]}  Bd7 {[%clk 0:02:46]} 14. d4 {[%clk 0:02:31]}  cxd4 {[%clk 0:02:45]} 15. Nxd4 {[%clk 0:02:31]}  Qc8 {[%clk 0:02:39]} 16. Bg5 {[%clk 0:02:25]}  Qc5 {[%clk 0:02:34]} 17. Be3 {[%clk 0:02:17]}  Nc4 {[%clk 0:02:28]} 18. Bxc4 {[%clk 0:01:27]}  Qxc4 {[%clk 0:02:29]} 19. Qd3 {[%clk 0:01:06]}  Rfc8 {[%clk 0:02:26]} 20. Red1 {[%clk 0:00:31]}  a3 {[%clk 0:02:15]} 21. Nce2 {[%clk 0:00:25]}  e5 {[%clk 0:01:52]} 22. Nf3 {[%clk 0:00:18]}  Nxe4 {[%clk 0:01:50]} 23. bxa3 {[%clk 0:00:15]}  Qxc2 {[%clk 0:01:47]} 24. Ng3 {[%clk 0:00:08]}  Qxd3 {[%clk 0:01:45]} 25. Rxd3 {[%clk 0:00:07]}  Nxg3 {[%clk 0:01:46]} 26. Rxd6 {[%clk 0:00:07]}  Ne2+ {[%clk 0:01:41]} 27. Kf1 {[%clk 0:00:06]}  Bf5 {[%clk 0:01:39]} 28. Rb7 {[%clk 0:00:03]}  Nc3 {[%clk 0:01:35]} 29. Ng5 {[%clk 0:00:03]}  Rxa3 {[%clk 0:01:33]} 30. g4 {[%clk 0:00:02]}  Bc2 {[%clk 0:01:21]} 31. Kg2 {[%clk 0:00:02]}  h6 {[%clk 0:01:21]} 32. Nf3 {[%clk 0:00:02]}  Be4 {[%clk 0:01:21]} 33. Rbb6 {[%clk 0:00:01]}  Nd5 {[%clk 0:01:19]} 34. Rb5 {[%clk 0:00:01]}  Nxe3+ {[%clk 0:01:19]} 35. fxe3 {[%clk 0:00:01]}  Rxe3 {[%clk 0:01:20]} 0-1


[Site "https://www.chess.com"]

[Event "Titled Tuesday Blitz November 2 2021"]
[White "Rodchenkov, Vitaly"]
[Black "Golubka, Petro"]
[WhiteFideId "4152964"]
[BlackFideId "14114224"]
[WhiteElo "2337"]
[BlackElo "2392"]
[Result "0-1"]
[Round "11"]
[TimeControl "180+1"]
[Date "2021.11.02"]
[WhiteClock "0:00:08"]
[BlackClock "0:00:21"]

1. Nf3 {[%clk 0:03:00]}  Nf6 {[%clk 0:02:15]} 2. c4 {[%clk 0:03:00]}  e6 {[%clk 0:02:15]} 3. b3 {[%clk 0:02:57]}  d6 {[%clk 0:02:15]} 4. Bb2 {[%clk 0:02:57]}  Be7 {[%clk 0:02:15]} 5. d4 {[%clk 0:02:57]}  O-O {[%clk 0:02:15]} 6. Nc3 {[%clk 0:02:57]}  a5 {[%clk 0:02:15]} 7. e3 {[%clk 0:02:55]}  b6 {[%clk 0:02:13]} 8. Bd3 {[%clk 0:02:55]}  Bb7 {[%clk 0:02:14]} 9. O-O {[%clk 0:02:55]}  Nbd7 {[%clk 0:02:13]} 10. Qc2 {[%clk 0:02:50]}  g6 {[%clk 0:02:12]} 11. Rfd1 {[%clk 0:02:48]}  Bxf3 {[%clk 0:02:11]} 12. gxf3 {[%clk 0:02:47]}  c6 {[%clk 0:02:11]} 13. f4 {[%clk 0:02:45]}  d5 {[%clk 0:02:11]} 14. Ne2 {[%clk 0:02:44]}  Rc8 {[%clk 0:02:10]} 15. Ng3 {[%clk 0:02:44]}  Re8 {[%clk 0:02:08]} 16. Rac1 {[%clk 0:02:43]}  Bf8 {[%clk 0:02:07]} 17. cxd5 {[%clk 0:02:37]}  exd5 {[%clk 0:02:05]} 18. Bf1 {[%clk 0:02:36]}  Bg7 {[%clk 0:02:05]} 19. Bh3 {[%clk 0:02:36]}  Rc7 {[%clk 0:02:02]} 20. Ba3 {[%clk 0:02:31]}  Bf8 {[%clk 0:02:00]} 21. Bxf8 {[%clk 0:02:29]}  Nxf8 {[%clk 0:02:01]} 22. Qe2 {[%clk 0:02:26]}  Qd6 {[%clk 0:01:59]} 23. Rc2 {[%clk 0:02:24]}  Ra8 {[%clk 0:01:57]} 24. Rdc1 {[%clk 0:02:22]}  a4 {[%clk 0:01:57]} 25. f5 {[%clk 0:02:08]}  axb3 {[%clk 0:01:56]} 26. axb3 {[%clk 0:02:08]}  Kg7 {[%clk 0:01:56]} 27. fxg6 {[%clk 0:02:06]}  hxg6 {[%clk 0:01:57]} 28. Qf3 {[%clk 0:02:02]}  c5 {[%clk 0:01:56]} 29. dxc5 {[%clk 0:02:00]}  Rxc5 {[%clk 0:01:57]} 30. Rxc5 {[%clk 0:01:59]}  bxc5 {[%clk 0:01:58]} 31. Bg2 {[%clk 0:01:35]}  Ne6 {[%clk 0:01:55]} 32. Ne2 {[%clk 0:01:31]}  Rb8 {[%clk 0:01:47]} 33. Rc3 {[%clk 0:01:24]}  Qe5 {[%clk 0:01:42]} 34. Qg3 {[%clk 0:01:21]}  Qxg3 {[%clk 0:01:37]} 35. hxg3 {[%clk 0:01:21]}  Rb6 {[%clk 0:01:34]} 36. Rd3 {[%clk 0:01:19]}  c4 {[%clk 0:01:33]} 37. bxc4 {[%clk 0:01:18]}  dxc4 {[%clk 0:01:34]} 38. Rd1 {[%clk 0:01:16]}  Rb2 {[%clk 0:01:31]} 39. Nd4 {[%clk 0:00:53]}  Ng4 {[%clk 0:01:22]} 40. Nxe6+ {[%clk 0:00:42]}  fxe6 {[%clk 0:01:23]} 41. Rd7+ {[%clk 0:00:39]}  Kf6 {[%clk 0:01:22]} 42. Rc7 {[%clk 0:00:38]}  Nxf2 {[%clk 0:00:51]} 43. Rxc4 {[%clk 0:00:36]}  Nd1 {[%clk 0:00:49]} 44. Rf4+ {[%clk 0:00:27]}  Ke7 {[%clk 0:00:46]} 45. Re4 {[%clk 0:00:26]}  Re2 {[%clk 0:00:37]} 46. Bf3 {[%clk 0:00:19]}  Rxe3 {[%clk 0:00:36]} 47. Rxe3 {[%clk 0:00:18]}  Nxe3 {[%clk 0:00:37]} 48. Kf2 {[%clk 0:00:18]}  Nf5 {[%clk 0:00:37]} 49. Bg4 {[%clk 0:00:18]}  Kf6 {[%clk 0:00:35]} 50. Kf3 {[%clk 0:00:18]}  Ke5 {[%clk 0:00:33]} 51. Bh3 {[%clk 0:00:17]}  g5 {[%clk 0:00:31]} 52. Bg4 {[%clk 0:00:16]}  Nd4+ {[%clk 0:00:29]} 53. Ke3 {[%clk 0:00:16]}  Nb5 {[%clk 0:00:29]} 54. Bh3 {[%clk 0:00:15]}  Nd6 {[%clk 0:00:28]} 55. Bg4 {[%clk 0:00:15]}  Ne8 {[%clk 0:00:28]} 56. Be2 {[%clk 0:00:15]}  Nf6 {[%clk 0:00:29]} 57. Kf3 {[%clk 0:00:15]}  Kd4 {[%clk 0:00:28]} 58. Ba6 {[%clk 0:00:14]}  e5 {[%clk 0:00:28]} 59. Bb7 {[%clk 0:00:14]}  e4+ {[%clk 0:00:29]} 60. Ke2 {[%clk 0:00:13]}  Nh5 {[%clk 0:00:29]} 61. Kf2 {[%clk 0:00:12]}  Kd3 {[%clk 0:00:28]} 62. Ba6+ {[%clk 0:00:11]}  Kd2 {[%clk 0:00:28]} 63. Bb5 {[%clk 0:00:10]}  g4 {[%clk 0:00:22]} 64. Bc4 {[%clk 0:00:07]}  e3+ {[%clk 0:00:22]} 65. Kg2 {[%clk 0:00:08]}  e2 {[%clk 0:00:21]} 0-1


[Site "https://www.chess.com"]

[Event "Titled Tuesday Blitz November 2 2021"]
[White "Sanchez Alvares, Kelvin Antonio"]
[Black "Hansen, Eric"]
[WhiteFideId "3906680"]
[BlackFideId "2606771"]
[WhiteElo "2193"]
[BlackElo "2568"]
[Result "0-1"]
[Round "11"]
[TimeControl "180+1"]
[Date "2021.11.02"]
[WhiteClock "0:00:01"]
[BlackClock "0:00:05"]

1. d4 {[%clk 0:03:00]}  Nf6 {[%clk 0:03:00]} 2. c4 {[%clk 0:02:51]}  e6 {[%clk 0:03:00]} 3. Nf3 {[%clk 0:02:50]}  b6 {[%clk 0:03:00]} 4. g3 {[%clk 0:02:50]}  Bb7 {[%clk 0:03:01]} 5. Bg2 {[%clk 0:02:50]}  g6 {[%clk 0:03:01]} 6. O-O {[%clk 0:02:50]}  Bg7 {[%clk 0:03:02]} 7. Nc3 {[%clk 0:02:49]}  Ne4 {[%clk 0:03:02]} 8. Qc2 {[%clk 0:02:48]}  Nxc3 {[%clk 0:03:03]} 9. bxc3 {[%clk 0:02:48]}  O-O {[%clk 0:03:03]} 10. e4 {[%clk 0:02:48]}  d6 {[%clk 0:03:04]} 11. Bg5 {[%clk 0:02:47]}  Qe8 {[%clk 0:03:03]} 12. e5 {[%clk 0:02:40]}  Nc6 {[%clk 0:03:02]} 13. Rfe1 {[%clk 0:02:34]}  Na5 {[%clk 0:02:57]} 14. Qd3 {[%clk 0:02:28]}  Ba6 {[%clk 0:02:54]} 15. Nd2 {[%clk 0:02:27]}  d5 {[%clk 0:02:54]} 16. Bf6 {[%clk 0:02:18]}  c5 {[%clk 0:02:52]} 17. Bxg7 {[%clk 0:02:17]}  Kxg7 {[%clk 0:02:52]} 18. Qf3 {[%clk 0:02:14]}  Nxc4 {[%clk 0:02:50]} 19. Qf6+ {[%clk 0:02:10]}  Kg8 {[%clk 0:02:51]} 20. Nf3 {[%clk 0:02:03]}  Qd8 {[%clk 0:02:49]} 21. Qf4 {[%clk 0:02:03]}  Kg7 {[%clk 0:02:50]} 22. h4 {[%clk 0:02:01]}  h6 {[%clk 0:02:50]} 23. Bf1 {[%clk 0:01:56]}  Rc8 {[%clk 0:02:45]} 24. Bd3 {[%clk 0:01:48]}  Qe7 {[%clk 0:02:43]} 25. Kg2 {[%clk 0:01:27]}  f5 {[%clk 0:02:14]} 26. exf6+ {[%clk 0:01:25]}  Rxf6 {[%clk 0:02:15]} 27. Qg4 {[%clk 0:01:25]}  Rcf8 {[%clk 0:02:15]} 28. Kg1 {[%clk 0:01:08]}  Nd2 {[%clk 0:02:06]} 29. Nxd2 {[%clk 0:01:01]}  Bxd3 {[%clk 0:02:06]} 30. f4 {[%clk 0:01:00]}  cxd4 {[%clk 0:02:01]} 31. Qf3 {[%clk 0:00:59]}  dxc3 {[%clk 0:01:19]} 32. Nb3 {[%clk 0:00:55]}  Be4 {[%clk 0:01:15]} 33. Qxc3 {[%clk 0:00:55]}  Kh7 {[%clk 0:01:15]} 34. Nd2 {[%clk 0:00:50]}  Bf5 {[%clk 0:01:04]} 35. Rac1 {[%clk 0:00:47]}  g5 {[%clk 0:01:01]} 36. Qe5 {[%clk 0:00:45]}  R6f7 {[%clk 0:00:41]} 37. hxg5 {[%clk 0:00:45]}  hxg5 {[%clk 0:00:41]} 38. Nf3 {[%clk 0:00:44]}  gxf4 {[%clk 0:00:35]} 39. gxf4 {[%clk 0:00:41]}  Rg7+ {[%clk 0:00:27]} 40. Kf2 {[%clk 0:00:39]}  Bg4 {[%clk 0:00:26]} 41. Rh1+ {[%clk 0:00:28]}  Kg8 {[%clk 0:00:27]} 42. Rcg1 {[%clk 0:00:28]}  Qc5+ {[%clk 0:00:20]} 43. Nd4 {[%clk 0:00:24]}  Qc3 {[%clk 0:00:06]} 44. Rxg4 {[%clk 0:00:15]}  Qb2+ {[%clk 0:00:07]} 45. Kf3 {[%clk 0:00:14]}  Qc3+ {[%clk 0:00:07]} 46. Kf2 {[%clk 0:00:12]}  Qb2+ {[%clk 0:00:08]} 47. Kg3 {[%clk 0:00:05]}  Rxg4+ {[%clk 0:00:07]} 48. Kxg4 {[%clk 0:00:05]}  Qg2+ {[%clk 0:00:07]} 49. Kh5 {[%clk 0:00:04]}  Qxh1+ {[%clk 0:00:07]} 50. Kg6 {[%clk 0:00:03]}  Qg2+ {[%clk 0:00:07]} 51. Kh5 {[%clk 0:00:03]}  Qh3+ {[%clk 0:00:07]} 52. Kg5 {[%clk 0:00:04]}  Qg3+ {[%clk 0:00:07]} 53. Kh5 {[%clk 0:00:04]}  Qh3+ {[%clk 0:00:06]} 54. Kg5 {[%clk 0:00:04]}  Kh7 {[%clk 0:00:05]} 55. Nxe6 {[%clk 0:00:03]}  Rg8+ {[%clk 0:00:04]} 56. Kf6 {[%clk 0:00:04]}  Rg6+ {[%clk 0:00:03]} 57. Ke7 {[%clk 0:00:04]}  Rxe6+ {[%clk 0:00:02]} 58. Qxe6 {[%clk 0:00:04]}  Qxe6+ {[%clk 0:00:02]} 59. Kxe6 {[%clk 0:00:05]}  d4 {[%clk 0:00:03]} 60. f5 {[%clk 0:00:03]}  d3 {[%clk 0:00:04]} 61. f6 {[%clk 0:00:03]}  d2 {[%clk 0:00:05]} 62. f7 {[%clk 0:00:04]}  d1=Q {[%clk 0:00:06]} 63. f8=Q {[%clk 0:00:04]}  Qe2+ {[%clk 0:00:05]} 64. Kd7 {[%clk 0:00:04]}  Qxa2 {[%clk 0:00:04]} 65. Qf5+ {[%clk 0:00:04]}  Kh6 {[%clk 0:00:05]} 66. Qf6+ {[%clk 0:00:04]}  Kh5 {[%clk 0:00:05]} 67. Qf5+ {[%clk 0:00:04]}  Kh4 {[%clk 0:00:06]} 68. Qf4+ {[%clk 0:00:04]}  Kh3 {[%clk 0:00:06]} 69. Qf3+ {[%clk 0:00:05]}  Kh2 {[%clk 0:00:07]} 70. Qf4+ {[%clk 0:00:06]}  Kg1 {[%clk 0:00:08]} 71. Qg3+ {[%clk 0:00:06]}  Kf1 {[%clk 0:00:08]} 72. Qh3+ {[%clk 0:00:04]}  Qg2 {[%clk 0:00:07]} 73. Qd3+ {[%clk 0:00:04]}  Qe2 {[%clk 0:00:07]} 74. Qh3+ {[%clk 0:00:04]}  Ke1 {[%clk 0:00:07]} 75. Qh1+ {[%clk 0:00:04]}  Kd2 {[%clk 0:00:07]} 76. Qc6 {[%clk 0:00:02]}  Qd3+ {[%clk 0:00:06]} 77. Ke7 {[%clk 0:00:03]}  Qe3+ {[%clk 0:00:06]} 78. Kd7 {[%clk 0:00:03]}  Qd4+ {[%clk 0:00:05]} 79. Ke6 {[%clk 0:00:02]}  a5 {[%clk 0:00:06]} 80. Qb5 {[%clk 0:00:01]}  Kc3 {[%clk 0:00:05]} 0-1


[Site "https://www.chess.com"]

[Event "Titled Tuesday Blitz November 2 2021"]
[White "Timofeev, Artyom"]
[Black "Ozen, Bahadir"]
[WhiteFideId "4140419"]
[BlackFideId "6337058"]
[WhiteElo "2591"]
[BlackElo "2503"]
[Result "1-0"]
[Round "11"]
[TimeControl "180+1"]
[Date "2021.11.02"]
[WhiteClock "0:01:30"]
[BlackClock "0:00:43"]

1. c4 {[%clk 0:03:00]}  c6 {[%clk 0:02:59]} 2. Nf3 {[%clk 0:02:58]}  d5 {[%clk 0:02:59]} 3. e3 {[%clk 0:02:58]}  Nf6 {[%clk 0:02:58]} 4. h3 {[%clk 0:02:58]}  e6 {[%clk 0:02:48]} 5. Nc3 {[%clk 0:02:57]}  Bd6 {[%clk 0:02:48]} 6. b3 {[%clk 0:02:56]}  O-O {[%clk 0:02:47]} 7. Bb2 {[%clk 0:02:56]}  Nbd7 {[%clk 0:02:43]} 8. d4 {[%clk 0:02:55]}  b6 {[%clk 0:02:39]} 9. Bd3 {[%clk 0:02:51]}  Bb7 {[%clk 0:02:39]} 10. O-O {[%clk 0:02:50]}  Qe7 {[%clk 0:02:31]} 11. cxd5 {[%clk 0:02:49]}  exd5 {[%clk 0:02:30]} 12. Re1 {[%clk 0:02:45]}  c5 {[%clk 0:02:18]} 13. dxc5 {[%clk 0:02:42]}  bxc5 {[%clk 0:02:19]} 14. Rc1 {[%clk 0:02:38]}  Rac8 {[%clk 0:02:17]} 15. Bf5 {[%clk 0:02:37]}  Rfd8 {[%clk 0:02:14]} 16. Qc2 {[%clk 0:02:23]}  g6 {[%clk 0:01:58]} 17. Bxd7 {[%clk 0:02:22]}  Rxd7 {[%clk 0:01:51]} 18. Nb5 {[%clk 0:02:19]}  Bb8 {[%clk 0:01:48]} 19. Qc3 {[%clk 0:02:19]}  Rc6 {[%clk 0:01:49]} 20. Ne5 {[%clk 0:02:12]}  Bxe5 {[%clk 0:01:48]} 21. Qxe5 {[%clk 0:02:12]}  Qxe5 {[%clk 0:01:48]} 22. Bxe5 {[%clk 0:02:12]}  c4 {[%clk 0:01:31]} 23. Nd4 {[%clk 0:02:10]}  Ra6 {[%clk 0:01:31]} 24. bxc4 {[%clk 0:02:09]}  dxc4 {[%clk 0:01:29]} 25. Rxc4 {[%clk 0:02:09]}  Re7 {[%clk 0:01:29]} 26. Bxf6 {[%clk 0:02:06]}  Rxf6 {[%clk 0:01:28]} 27. a4 {[%clk 0:02:05]}  Ra6 {[%clk 0:01:27]} 28. Rec1 {[%clk 0:01:59]}  Bd5 {[%clk 0:01:24]} 29. Rc5 {[%clk 0:01:58]}  Rd7 {[%clk 0:01:23]} 30. a5 {[%clk 0:01:57]}  Kg7 {[%clk 0:01:18]} 31. g4 {[%clk 0:01:57]}  h6 {[%clk 0:01:17]} 32. Kh2 {[%clk 0:01:57]}  Rf6 {[%clk 0:01:15]} 33. Kg3 {[%clk 0:01:56]}  Rfd6 {[%clk 0:01:13]} 34. Rc7 {[%clk 0:01:54]}  Kf6 {[%clk 0:01:06]} 35. Nb5 {[%clk 0:01:47]}  Rxc7 {[%clk 0:01:01]} 36. Rxc7 {[%clk 0:01:46]}  Rc6 {[%clk 0:00:54]} 37. Rxa7 {[%clk 0:01:40]}  Rc1 {[%clk 0:00:52]} 38. f3 {[%clk 0:01:38]}  Rg1+ {[%clk 0:00:46]} 39. Kf2 {[%clk 0:01:38]}  Rh1 {[%clk 0:00:46]} 40. e4 {[%clk 0:01:37]}  Bc4 {[%clk 0:00:45]} 41. Nd6 {[%clk 0:01:30]}  Be6 {[%clk 0:00:45]} 42. f4 {[%clk 0:01:30]}  Rxh3 {[%clk 0:00:43]} 43. Ne8# {[%clk 0:01:30]} 1-0


[Site "https://www.chess.com"]

[Event "Titled Tuesday Blitz November 2 2021"]
[White "Tregubov, Pavel V."]
[Black "Balabayeva, Xeniya"]
[WhiteFideId "4115341"]
[BlackFideId "13719688"]
[WhiteElo "2423"]
[BlackElo "1965"]
[Result "1/2-1/2"]
[Round "11"]
[TimeControl "180+1"]
[Date "2021.11.02"]
[WhiteClock "0:00:15"]
[BlackClock "0:00:20"]

1. e4 {[%clk 0:03:00]}  c6 {[%clk 0:02:59]} 2. Nf3 {[%clk 0:03:00]}  d5 {[%clk 0:02:56]} 3. Nc3 {[%clk 0:03:01]}  dxe4 {[%clk 0:02:56]} 4. Nxe4 {[%clk 0:03:01]}  Nf6 {[%clk 0:02:56]} 5. Qe2 {[%clk 0:03:01]}  Nxe4 {[%clk 0:02:52]} 6. Qxe4 {[%clk 0:03:02]}  Nd7 {[%clk 0:02:52]} 7. Bc4 {[%clk 0:03:00]}  Nf6 {[%clk 0:02:52]} 8. Ne5 {[%clk 0:03:01]}  e6 {[%clk 0:02:52]} 9. Qf4 {[%clk 0:03:00]}  Bd6 {[%clk 0:02:40]} 10. d4 {[%clk 0:02:55]}  b5 {[%clk 0:02:30]} 11. Bd3 {[%clk 0:02:53]}  Bb7 {[%clk 0:02:27]} 12. O-O {[%clk 0:02:51]}  a6 {[%clk 0:02:17]} 13. Qg3 {[%clk 0:02:41]}  Kf8 {[%clk 0:01:58]} 14. Bf4 {[%clk 0:02:35]}  Nh5 {[%clk 0:01:40]} 15. Nxc6 {[%clk 0:01:42]}  Nxg3 {[%clk 0:01:14]} 16. Nxd8 {[%clk 0:01:42]}  Bxf4 {[%clk 0:00:58]} 17. hxg3 {[%clk 0:01:39]}  Rxd8 {[%clk 0:00:58]} 18. gxf4 {[%clk 0:01:39]}  Rxd4 {[%clk 0:00:57]} 19. f5 {[%clk 0:01:28]}  e5 {[%clk 0:00:55]} 20. f3 {[%clk 0:01:26]}  f6 {[%clk 0:00:53]} 21. Rfd1 {[%clk 0:01:23]}  Ke7 {[%clk 0:00:52]} 22. c3 {[%clk 0:01:22]}  Rd7 {[%clk 0:00:51]} 23. Be4 {[%clk 0:01:17]}  Bxe4 {[%clk 0:00:51]} 24. Rxd7+ {[%clk 0:01:16]}  Kxd7 {[%clk 0:00:51]} 25. fxe4 {[%clk 0:01:16]}  Rc8 {[%clk 0:00:50]} 26. Rd1+ {[%clk 0:01:16]}  Ke7 {[%clk 0:00:49]} 27. Kf2 {[%clk 0:01:16]}  Rc4 {[%clk 0:00:49]} 28. Ke3 {[%clk 0:01:16]}  Rc7 {[%clk 0:00:41]} 29. Rd5 {[%clk 0:01:12]}  Rd7 {[%clk 0:00:37]} 30. b3 {[%clk 0:01:03]}  g6 {[%clk 0:00:34]} 31. fxg6 {[%clk 0:00:49]}  hxg6 {[%clk 0:00:34]} 32. Rxd7+ {[%clk 0:00:49]}  Kxd7 {[%clk 0:00:34]} 33. g4 {[%clk 0:00:50]}  Ke6 {[%clk 0:00:28]} 34. c4 {[%clk 0:00:50]}  bxc4 {[%clk 0:00:28]} 35. bxc4 {[%clk 0:00:50]}  Kd6 {[%clk 0:00:25]} 36. Kd3 {[%clk 0:00:50]}  Kc5 {[%clk 0:00:20]} 37. Kc3 {[%clk 0:00:50]}  a5 {[%clk 0:00:20]} 38. a3 {[%clk 0:00:38]}  Kb6 {[%clk 0:00:20]} 39. Kb3 {[%clk 0:00:29]}  Kc5 {[%clk 0:00:20]} 40. Kc3 {[%clk 0:00:18]}  Kb6 {[%clk 0:00:20]} 41. Kd3 {[%clk 0:00:14]}  Kc5 {[%clk 0:00:20]} 42. Kc3 {[%clk 0:00:15]} 1/2-1/2


[Site "https://www.chess.com"]